[Event "45th FIDE Olympiad 2024"]
[Site "Budapest"]
[Date "2024.09.11"]
[Round "1.21"]
[White "El Jawich, Amro"]
[Black "Giri, Anish"]
[Result "0-1"]
[ECO "B80"]
[WhiteElo "2296"]
[BlackElo "2724"]
[Annotator "TA"]
[PlyCount "166"]
[EventDate "2024.09.05"]
[EventType "team-tourn"]
[EventCountry "HUN"]
[SourceTitle "playchess.com"]
[Source "ChessBase"]
[SourceQuality "1"]
[WhiteTeam "Lebanon"]
[BlackTeam "Netherlands"]
[WhiteTeamCountry "LBN"]
[BlackTeamCountry "NED"]
[TimeControl "40/5400+30:1800+30"]

{[%evp 39,166,-6,-7,-31,-24,-24,-18,-18,-18,-18,-18,-18,-18,-18,-18,-18,-18,-18,-18,-18,-18,-18,-18,-18,-18,-18,-18,-18,0,-18,-18,-18,-18,-18,-18,-44,-18,-18,-8,-8,-8,-8,-8,-10,-8,-37,-20,-50,-54,-63,-63,-61,-31,-56,0,-66,-53,-61,-63,-77,-22,-83,-91,-93,-78,-78,-78,-78,-36,-36,0,-76,-36,-108,-115,-124,-120,-128,-89,-104,-97,-124,-96,-89,-86,-117,-83,-83,-83,-83,-83,-83,-70,-123,-123,-130,-101,-101,-87,-87,-87,-101,-101,-306,-191,-376,-378,-377,-363,-485,-485,-441,-64,-471,-445,-1645,-707,-1629,-1291,-12801,-4137,-29985,-29983,-29983,-29984,-29984,-29985,-29985,-29987]} 1. e4 {[%emt 0:00:05]} c5 {[%emt 0:00:03]} 2. Nc3 {[%emt 0:00:10]} Nc6 {[%emt 0:00:23]} 3. Nge2 {[%emt 0:00:29]} e6 {[%emt 0:01:12]} 4. g3 {[%emt 0:02:11]} Nf6 {[%emt 0:01:57]} 5. Bg2 {[%emt 0:00:42]} d6 {[%emt 0:02:52]} 6. d4 {[%emt 0:02:22]} cxd4 {[%emt 0:00:12]} 7. Nxd4 {[%emt 0:00:08]} Bd7 {[%emt 0:00:32]} 8. O-O {[%emt 0:02:29]} Be7 {[%emt 0:00:22]} 9. Nxc6 {[%emt 0:05:55] B80: Sicilian Scheveningen: 6 g3 and 6 Be3, including English Attack.} Bxc6 {[%emt 0:02:09]} 10. Qe2 {[%emt 0:05:11]} O-O {[%emt 0:01:59]} 11. Rd1 {[%emt 0:09:09]} Nd7 $146 {[%emt 0:09:24]} ({Predecessor:} 11... Qa5 12. Bf4 Rfd8 13. a3 Rac8 14. Rd2 Ne8 15. Rad1 Bf6 16. e5 dxe5 17. Rxd8 Rxd8 18. Rxd8 Qxd8 19. Bxe5 Bxg2 20. Bxf6 Nxf6 21. Kxg2 {0-1 Vlachos,A (2438)-Moussard,J (2632) Paris-ch Rapid 2022 (5.4)}) 12. Nb5 {[%emt 0:05:59]} Bxb5 {[%emt 0:02:45]} 13. Qxb5 {[%emt 0:00:11]} Qc7 {[%emt 0:00:10]} 14. c3 {[%emt 0:02:07]} Ne5 {[%emt 0:06:12]} 15. Bf4 {[%emt 0:05:57]} a6 {[%emt 0:03:18]} 16. Qe2 {[%emt 0:00:57]} b5 {[%emt 0:01:51]} 17. Bxe5 {[%emt 0:01:51]} dxe5 {[%emt 0:00:40]} 18. a4 {[%emt 0:04:06]} b4 {[%emt 0:00:33]} 19. cxb4 {[%emt 0:03:48]} Bxb4 {[%emt 0:00:13]} 20. Rac1 {[%emt 0:01:34]} Qb6 {[%emt 0:13:53]} 21. Qe3 {[%emt 0:09:47]} Qxe3 {[%emt 0:10:34]} 22. fxe3 {[%emt 0:00:03]} g6 {[%emt 0:01:25]} 23. Bf1 {[%emt 0:05:22]} a5 {[%emt 0:01:36]} 24. Bc4 {[%emt 0:03:28]} Rfd8 {[%emt 0:04:43]} 25. Kf2 {[%emt 0:03:33]} Rac8 {[%emt 0:03:29]} 26. b3 $1 {[%emt 0:00:25]} Bd2 {[%emt 0:00:37]} 27. Rb1 {[%emt 0:01:20]} Rd6 {[%emt 0:00:09]} 28. Ke2 {[%emt 0:01:20]} Rcd8 {[%emt 0:00:21]} 29. Rb2 {[%emt 0:01:57]} Bb4 {[%emt 0:00:14]} 30. Rxd6 {[%emt 0:00:07]} Rxd6 {[%emt 0:00:03]} 31. Bd3 {[%emt 0:01:12]} g5 {[%emt 0:02:41]} 32. h3 {[%emt 0:03:43]} h5 {[%emt 0:01:46]} 33. Rb1 {[%emt 0:01:16]} Kg7 {[%emt 0:07:28]} 34. Rd1 {[%emt 0:02:39]} Rd8 {[%emt 0:00:05]} 35. Bc4 {[%emt 0:01:24]} Rh8 {[%emt 0:00:07]} 36. Kf3 {[%emt 0:01:15]} Rh6 {[%emt 0:00:23]} 37. Bd3 {[%emt 0:12:32]} Bc5 {[%emt 0:04:15]} 38. Rc1 {[%emt 0:01:27]} g4+ {[%emt 0:01:27]} 39. hxg4 {[%emt 0:00:11]} hxg4+ {[%emt 0:00:05]} 40. Kxg4 {[%emt 0:00:36]} Bxe3 {[%emt 0:00:06]} 41. Rc2 {[%emt 0:12:21]} Bd4 {[%emt 0:07:51]} 42. Rc4 {[%emt 0:04:05]} Bf2 {[%emt 0:06:24]} 43. b4 {[%emt 0:09:07]} axb4 {[%emt 0:00:28]} 44. Rxb4 {[%emt 0:00:03]} Rg6+ {[%emt 0:03:33]} 45. Kf3 {[%emt 0:00:02]} Be1 {[%emt 0:03:19]} (45... Bxg3 46. Rb2 $11) 46. Rb5 {[%emt 0:05:34]} Rxg3+ {[%emt 0:00:13]} (46... Bxg3 47. Rb2 $11) 47. Ke2 {[%emt 0:00:02]} Bc3 {[%emt 0:00:05]} 48. Rb3 {[%emt 0:01:54]} Bd4 {[%emt 0:01:56]} 49. a5 {[%emt 0:00:29]} Rg2+ {[%emt 0:01:27]} (49... f5 $17) 50. Kf3 {[%emt 0:01:33]} (50. Kd1 $11 {keeps the balance.}) 50... Rf2+ $17 {[%emt 0:02:04]} 51. Kg3 {[%emt 0:00:45]} Ra2 {[%emt 0:01:26]} 52. a6 {[%emt 0:00:02]} Kg6 {[%emt 0:00:03]} 53. Kg4 {[%emt 0:01:30]} Rg2+ {[%emt 0:00:37]} 54. Kh3 {[%emt 0:00:25]} Ra2 {[%emt 0:01:02]} 55. Kg4 {[%emt 0:00:23]} Rf2 {[%emt 0:01:58]} 56. Ra3 {[%emt 0:00:46]} (56. Rb8 $15) 56... Ba7 $17 {[%emt 0:00:41]} 57. Bc4 {[%emt 0:00:28]} f5+ {[%emt 0:06:59]} 58. Kg3 {[%emt 0:00:04]} Kf6 {[%emt 0:00:57]} (58... fxe4 $6 59. Bxe6 Kg5 60. Ra2 $11) 59. Ra2 {[%emt 0:00:54]} Rf4 {[%emt 0:00:15]} 60. Bd3 {[%emt 0:00:30]} Rg4+ {[%emt 0:01:15]} 61. Kf3 {[%emt 0:00:27]} Rh4 {[%emt 0:01:27]} 62. Kg3 {[%emt 0:00:23]} Rh7 {[%emt 0:01:18]} 63. Rb2 {[%emt 0:00:41]} f4+ {[%emt 0:03:27]} 64. Kg4 {[%emt 0:00:02]} Rg7+ {[%emt 0:00:09]} 65. Kh4 {[%emt 0:00:52]} Rg3 {[%emt 0:03:37]} 66. Bf1 {[%emt 0:00:38] [#]} (66. Bb5 $15) 66... Rg1 $1 $17 {[%emt 0:01:02]} 67. Bc4 {[%emt 0:00:30]} Rc1 {[%emt 0:01:05]} 68. Be2 {[%emt 0:00:16]} Rh1+ {[%emt 0:00:34]} 69. Kg4 {[%emt 0:00:07]} Rg1+ {[%emt 0:00:06]} 70. Kh3 {[%emt 0:00:51]} Rg3+ {[%emt 0:00:52]} 71. Kh2 $2 {[%emt 0:00:02]} (71. Kh4 $17) 71... Re3 $19 {[%emt 0:01:11]} 72. Bg4 $2 {[%emt 0:01:14]} (72. Bd1) 72... Rxe4 $19 {[%emt 0:00:20]} 73. Rb7 {[%emt 0:00:04]} Be3 {[%emt 0:00:16]} 74. Rc7 {[%emt 0:00:55]} Ra4 {[%emt 0:01:03]} 75. Rc6 {[%emt 0:00:02]} e4 $2 {[%emt 0:04:23]} (75... Kg5 $19 76. Bxe6 e4) 76. Bxe6 $2 {[%emt 0:00:02][%mdl 8192]} ({White should play} 76. Rxe6+ $15 Kf7 (76... Kg5 77. Kh3 $11) 77. Bf5) 76... Ke5 {[%emt 0:00:06]} 77. Bc8 {[%emt 0:00:49]} (77. Bd7 $142 Ra5 (77... Ra2+ 78. Kh3 $15) 78. Rc8) 77... f3 $19 {[%emt 0:01:02]} 78. Re6+ {[%emt 0:00:31]} Kf4 {[%emt 0:00:41]} 79. Bb7 {[%emt 0:00:45]} Bc5 {[%emt 0:00:26]} (79... Ra2+ $142 80. Kh3 f2 (80... Ra4 81. Bc6 $11)) 80. Rc6 {[%emt 0:00:52]} Ra2+ {[%emt 0:00:16]} 81. Kh3 {[%emt 0:00:31]} Ra1 {[%emt 0:01:14]} 82. Rf6+ {[%emt 0:00:29]} Ke5 {[%emt 0:00:46]} 83. Rf7 {[%emt 0:00:27]} f2 {[%emt 0:00:25]} 0-1

[Event "45th FIDE Olympiad 2024"]
[Site "Budapest"]
[Date "2024.09.11"]
[Round "1.22"]
[White "Warmerdam, Max"]
[Black "Khoder, Akram"]
[Result "1-0"]
[ECO "A20"]
[WhiteElo "2679"]
[BlackElo "2239"]
[Annotator "TA"]
[PlyCount "85"]
[EventDate "2024.09.05"]
[EventType "team-tourn"]
[EventCountry "HUN"]
[SourceTitle "playchess.com"]
[Source "ChessBase"]
[SourceQuality "1"]
[WhiteTeam "Netherlands"]
[BlackTeam "Lebanon"]
[WhiteTeamCountry "NED"]
[BlackTeamCountry "LBN"]
[TimeControl "40/5400+30:1800+30"]

{[%evp 9,85,-3,25,13,20,13,7,0,9,8,24,16,19,22,17,18,19,11,21,0,0,0,28,5,1,5,115,131,163,163,223,113,136,116,118,72,166,152,113,107,177,171,287,241,223,179,174,151,212,192,171,156,160,178,395,288,279,263,258,242,466,429,434,468,439,230,414,355,350,353,352,352,354,322,324,263,250,229]} 1. c4 {[%emt 0:00:04]} e5 {[%emt 0:01:01]} 2. d3 {[%emt 0:00:47]} Nf6 {[%emt 0:01:15]} 3. Nf3 {[%emt 0:00:08]} Nc6 {[%emt 0:00:10]} 4. a3 {[%emt 0:00:50]} a5 {[%emt 0:00:16]} 5. Nc3 {[%emt 0:04:08]} Bc5 {[%emt 0:07:39]} 6. Bg5 {[%emt 0:03:14]} h6 {[%emt 0:01:50]} 7. Bxf6 {[%emt 0:00:28]} Qxf6 {[%emt 0:00:03]} 8. g3 {[%emt 0:00:38] The position is equal.} Nd4 {[%emt 0:04:53]} 9. Nd2 {[%emt 0:14:22]} d6 {[%emt 0:07:30]} 10. e3 {[%emt 0:03:28][%cal Oc3e4] Hoping for Nce4!} Ne6 {[%emt 0:09:37]} 11. b4 {[%emt 0:02:32]} Ba7 {[%emt 0:03:39]} (11... axb4 $6 12. axb4 (12. Nd5 Qd8 $11) 12... Rxa1 13. Qxa1 $16) 12. Bg2 {[%emt 0:02:09]} O-O {[%emt 0:08:09]} 13. O-O {[%emt 0:03:28]} c6 {[%emt 0:02:45]} 14. b5 {[%emt 0:10:24]} Bd7 {[%emt 0:01:08]} 15. Rb1 $36 {[%emt 0:01:02][%mdl 2048] White has good play.} Qe7 {[%emt 0:09:42]} 16. b6 {[%emt 0:21:14]} Bb8 {[%emt 0:00:20]} 17. Nf3 {[%emt 0:02:54]} d5 {[%emt 0:27:40]} 18. cxd5 $16 {[%emt 0:02:24]} cxd5 {[%emt 0:00:17]} 19. Nxd5 {[%emt 0:17:26]} Qd6 {[%emt 0:02:04] [#]} (19... Qd8 $142 20. d4 Bc6) 20. Nd2 {[%emt 0:02:23]} (20. Nh4 $1 $18 {[%cal Rh4f5]} Ng5 21. f4 exf4 22. exf4) 20... Bc6 {[%emt 0:00:05]} 21. Nc4 {[%emt 0:00:37] A dynamic duo of knights.} Qd7 {[%emt 0:02:46] [#]} 22. e4 {[%emt 0:00:07] White is much more active.} ({White should try} 22. Nc3 $1) 22... Bxd5 {[%emt 0:01:56]} (22... Nd4 $16) 23. exd5 $18 {[%emt 0:00:05]} Nd4 {[%emt 0:00:02]} 24. Re1 {[%emt 0:00:41]} a4 {[%emt 0:04:12]} (24... f6 $16 {was called for.} 25. Qh5 Kh7) 25. Qh5 {[%emt 0:00:44]} Ra6 {[%emt 0:02:02]} (25... Qd8 {was worth a try.} 26. d6 (26. Nxe5 Nc2 $16) 26... Bxd6 27. Nxd6 (27. Bxb7 Rb8 $18) 27... Qxd6 28. Qxe5 Rad8 29. Qxd6 (29. Bxb7 Qxa3 30. Be4 Rfe8 $18) 29... Rxd6) 26. Re4 {[%emt 0:01:45]} Nb3 {[%emt 0:01:29]} 27. Re3 {[%emt 0:02:12]} Bd6 {[%emt 0:00:43]} 28. Rbe1 {[%emt 0:00:40]} (28. Nxe5 Bxe5 29. Qxe5 (29. Rxe5 Rxb6 30. Re4 Rd6 $16) 29... Rxb6) 28... Na5 {[%emt 0:00:34]} (28... Nd4 $16 {is a better defense.}) 29. Bh3 {[%emt 0:00:31]} Qd8 {[%emt 0:00:16]} 30. Nxe5 {[%emt 0:00:47]} Bxe5 {[%emt 0:00:49]} 31. Rxe5 {[%emt 0:00:38]} Qd6 $2 {[%emt 0:00:33]} (31... Nb3 32. Qg4 g6) 32. Re8 {[%emt 0:02:04]} Ra8 {[%emt 0:00:29]} 33. Rxa8 {[%emt 0:00:30]} Rxa8 {[%emt 0:00:01]} 34. Qg4 {[%emt 0:00:24]} Nb3 $2 {[%emt 0:00:31]} (34... Qxd5 {keeps fighting.} 35. Qxa4 Qd8) 35. Qd7 {[%emt 0:00:20]} Qxd7 {[%emt 0:00:40]} 36. Bxd7 {[%emt 0:00:05][%mdl 4096] Endgame. KRB-KRN} Kf8 {[%emt 0:00:24]} 37. Kg2 {[%emt 0:00:55]} (37. d6 $142 g6 38. Bc6) 37... g6 $2 {[%emt 0:00:47] [#]} (37... Nc5) 38. Bc6 $1 {[%emt 0:01:12][%cal Od5d6][%mdl 512]} Rd8 {[%emt 0:00:42]} (38... Nd4 39. Re4) 39. Bxb7 {[%emt 0:00:11] And now Bc6 would win.} Rb8 {[%emt 0:00:16]} 40. Bc6 {[%emt 0:00:08][%cal Oe1e8] Re8+! would now be deadly.} Rxb6 {[%emt 0:00:39]} 41. Re8+ {[%emt 0:31:12]} ({Resist} 41. Bxa4 Nd4 42. Re8+ Kg7 $18) 41... Kg7 {[%emt 0:30:01]} 42. Ra8 {[%emt 0:00:37]} Nd4 {[%emt 0:00:00]} 43. Rxa4 {[%emt 0:00:00] Weighted Error Value: White=0.28 (precise) /Black=0.38.  Mistake:       	White=3     	Black=9      Inaccurate:     	---       	Black=1      OK:         	White=13    	Black=11     Best:        	White=2     	Black=4} ({Don't do} 43. Bxa4 Kf6 44. Rc8 Ke5 $18) 1-0

[Event "45th FIDE Olympiad 2024"]
[Site "Budapest"]
[Date "2024.09.11"]
[Round "1.22"]
[White "Veer, Gandhi"]
[Black "Aoshima, Mirai"]
[Result "0-1"]
[ECO "D05"]
[WhiteElo "1792"]
[BlackElo "2385"]
[Annotator "ChessBase"]
[PlyCount "82"]
[EventDate "2024.09.05"]
[EventType "team-tourn"]
[EventCountry "HUN"]
[SourceTitle "playchess.com"]
[Source "ChessBase"]
[SourceQuality "1"]
[WhiteTeam "Tanzania"]
[BlackTeam "Japan"]
[WhiteTeamCountry "TAN"]
[BlackTeamCountry "JPN"]
[TimeControl "40/5400+30:1800+30"]

1. d4 Nf6 2. Nf3 e6 3. e3 c5 4. Bd3 d5 5. b3 Nc6 6. a3 cxd4 7. exd4 g6 8. O-O Bg7 9. Bb2 O-O 10. Ne5 Qb6 11. Nxc6 bxc6 12. Nd2 a5 13. Nf3 Ba6 14. Ne5 Rfd8 15. Bxa6 Qxa6 16. Qf3 Qb7 17. Rad1 Ne4 18. Rfe1 Rac8 19. Qd3 Qc7 20. f3 Nd6 21. Re2 Nf5 22. Qd2 c5 23. dxc5 Qxc5+ 24. Kh1 d4 25. Nc4 a4 26. Qd3 Qc7 27. Bc1 Ne3 28. Rde1 Nxc4 29. Qxc4 Qxc4 30. bxc4 Rxc4 31. Rd2 Rdc8 32. Kg1 Rxc2 33. Rxc2 Rxc2 34. Bf4 d3 35. Rd1 Bd4+ 36. Kh1 e5 37. Bh6 Ra2 38. Rb1 f5 39. h3 f4 40. Rd1 Ra1 41. Rxa1 Bxa1 0-1

[Event "45th FIDE Olympiad 2024"]
[Site "Budapest"]
[Date "2024.09.11"]
[Round "1.23"]
[White "Kojima, Shinya"]
[Black "Hassuji, Nurdin"]
[Result "1-0"]
[ECO "D46"]
[WhiteElo "2299"]
[BlackElo "1847"]
[Annotator "ChessBase"]
[PlyCount "61"]
[EventDate "2024.09.05"]
[EventType "team-tourn"]
[EventCountry "HUN"]
[SourceTitle "playchess.com"]
[Source "ChessBase"]
[SourceQuality "1"]
[WhiteTeam "Japan"]
[BlackTeam "Tanzania"]
[WhiteTeamCountry "JPN"]
[BlackTeamCountry "TAN"]
[TimeControl "40/5400+30:1800+30"]

1. d4 d5 2. c4 c6 3. Nc3 Nf6 4. e3 e6 5. Nf3 Bd6 6. Qc2 Nbd7 7. Bd3 a6 8. O-O O-O 9. Rd1 Re8 10. e4 dxe4 11. Nxe4 Nxe4 12. Bxe4 Nf6 13. Bg5 h6 14. Bh4 g5 15. Bg3 Nxe4 16. Qxe4 f5 17. Qc2 Bxg3 18. hxg3 Qf6 19. c5 Bd7 20. Qb3 Rab8 21. Ne5 Re7 22. a4 Kg7 23. a5 Be8 24. Ra4 Rc7 25. Rb4 Bf7 26. Rb6 Qd8 27. Rd3 Qd5 28. Qxd5 exd5 29. Rdb3 Be8 30. Rxa6 Kf6 31. Ra7 1-0

[Event "45th FIDE Olympiad 2024"]
[Site "Budapest"]
[Date "2024.09.11"]
[Round "1.23"]
[White "Arkadan, Adib"]
[Black "L'ami, Erwin"]
[Result "0-1"]
[ECO "D37"]
[WhiteElo "2181"]
[BlackElo "2628"]
[Annotator "RC"]
[PlyCount "126"]
[EventDate "2024.09.05"]
[EventType "team-tourn"]
[EventCountry "HUN"]
[SourceTitle "playchess.com"]
[Source "ChessBase"]
[SourceQuality "1"]
[WhiteTeam "Lebanon"]
[BlackTeam "Netherlands"]
[WhiteTeamCountry "LBN"]
[BlackTeamCountry "NED"]
[TimeControl "40/5400+30:1800+30"]

1. d4 {[%emt 0:00:14]} Nf6 {[%emt 0:00:20]} 2. c4 {[%emt 0:00:56]} e6 {[%emt 0:00:21]} 3. Nf3 {[%emt 0:01:00]} d5 {[%emt 0:01:07]} 4. Nc3 {[%emt 0:01:11]} Nbd7 {[%emt 0:01:11]} 5. Bf4 {[%emt 0:00:57]} dxc4 {[%emt 0:00:58]} 6. e3 {[%emt 0:00:47]} Nb6 {[%emt 0:01:20]} 7. Bxc4 {[%emt 0:01:13]} Bd6 {[%emt 0:00:39]} 8. Bxd6 {[%emt 0:05:12]} cxd6 {[%emt 0:00:11]} 9. Bd3 {[%emt 0:01:07]} Nbd5 {[%emt 0:01:54]} 10. Nxd5 {[%emt 0:01:56]} Nxd5 {[%emt 0:00:09]} 11. O-O {[%emt 0:00:50]} Qb6 {[%emt 0:00:51]} 12. Qd2 {[%emt 0:01:30]} Bd7 {[%emt 0:02:12]} 13. Rac1 {[%emt 0:04:31]} O-O {[%emt 0:03:54]} 14. e4 {[%emt 0:05:52]} Ne7 {[%emt 0:03:13]} 15. Rfe1 {[%emt 0:08:37]} h6 {[%emt 0:04:34]} 16. Bb1 {[%emt 0:04:40]} Rfc8 {[%emt 0:04:05]} 17. h3 {[%emt 0:09:06]} Rxc1 {[%emt 0:05:31]} 18. Rxc1 {[%emt 0:00:08]} Rd8 {[%emt 0:00:26]} 19. Rc3 {[%emt 0:06:49]} Ng6 {[%emt 0:07:26]} 20. Rb3 {[%emt 0:04:40]} Qc7 {[%emt 0:09:02]} 21. Rc3 {[%emt 0:00:09]} Qb8 {[%emt 0:01:00]} 22. Bc2 {[%emt 0:14:32]} Be8 {[%emt 0:05:18]} 23. Bb3 {[%emt 0:03:13]} a5 {[%emt 0:01:16]} 24. g3 {[%emt 0:02:51]} Ne7 {[%emt 0:02:43]} 25. Kg2 {[%emt 0:02:23]} b5 {[%emt 0:02:45]} 26. Qc1 {[%emt 0:05:21]} Qb6 {[%emt 0:02:36]} 27. Qe3 {[%emt 0:02:38]} Bc6 {[%emt 0:05:01]} 28. Kg1 {[%emt 0:00:48]} a4 {[%emt 0:02:28]} 29. Bd1 {[%emt 0:00:30]} Qb7 {[%emt 0:05:24]} 30. Nd2 {[%emt 0:01:37]} Qb6 {[%emt 0:01:57]} 31. g4 {[%emt 0:01:39]} Be8 {[%emt 0:04:36]} 32. Be2 {[%emt 0:01:39]} e5 {[%emt 0:04:04]} 33. Nf3 {[%emt 0:03:04]} f6 {[%emt 0:04:20]} 34. d5 {[%emt 0:02:21]} Qb8 {[%emt 0:05:45]} 35. Ne1 {[%emt 0:00:26]} Ng6 {[%emt 0:00:45]} 36. Ng2 {[%emt 0:00:29]} Bd7 {[%emt 0:01:44]} 37. h4 {[%emt 0:01:33]} Kh7 {[%emt 0:02:05]} 38. h5 {[%emt 0:01:03]} Nh8 {[%emt 0:00:26]} 39. f3 {[%emt 0:01:00]} Nf7 {[%emt 0:00:54]} 40. Ne1 {[%emt 0:00:37]} Ng5 {[%emt 0:02:37]} 41. Nd3 {[%emt 0:31:00]} b4 {[%emt 0:04:45]} 42. Rc1 {[%emt 0:00:00]} b3 {[%emt 0:04:25]} 43. a3 {[%emt 0:00:00]} Rc8 {[%emt 0:03:25]} 44. Rxc8 {[%emt 0:00:00]} Qxc8 {[%emt 0:00:10]} 45. Qc1 {[%emt 0:00:00]} Qb8 {[%emt 0:00:49]} 46. Kg2 {[%emt 0:00:00]} g6 {[%emt 0:05:24]} 47. hxg6+ {[%emt 0:00:00]} Kxg6 {[%emt 0:00:09]} 48. Qe3 {[%emt 0:00:00]} Kh7 {[%emt 0:03:08]} 49. Nb4 {[%emt 0:00:00]} h5 {[%emt 0:06:49]} 50. Nc6 {[%emt 0:00:00]} Qb7 {[%emt 0:01:44]} 51. Na5 {[%emt 0:00:00]} Qc7 {[%emt 0:01:00]} 52. Nc6 {[%emt 0:00:47]} hxg4 {[%emt 0:00:08]} 53. fxg4 {[%emt 0:00:25]} Qb7 {[%emt 0:01:13]} 54. Na5 {[%emt 0:01:10]} Qc8 {[%emt 0:00:20]} 55. Nc4 {[%emt 0:03:32]} Bxg4 {[%emt 0:01:29]} 56. Qa7+ {[%emt 0:00:32]} Kg6 {[%emt 0:01:05]} 57. Qe3 {[%emt 0:01:49]} Bxe2 {[%emt 0:00:52]} 58. Qxe2 {[%emt 0:00:07]} Qh3+ {[%emt 0:00:14]} 59. Kg1 {[%emt 0:00:35]} Qg3+ {[%emt 0:00:45]} 60. Kf1 {[%emt 0:00:32]} Qf4+ {[%emt 0:00:30]} 61. Qf2 {[%emt 0:00:32]} Qc1+ {[%emt 0:00:32]} 62. Kg2 {[%emt 0:00:02]} Qxc4 {[%emt 0:00:13]} 63. Qf5+ {[%emt 0:00:04]} Kg7 {[%emt 0:00:06]} 0-1

[Event "45th FIDE Olympiad 2024"]
[Site "Budapest"]
[Date "2024.09.11"]
[Round "1.24"]
[White "Bok, Benjamin"]
[Black "Assaad, Joe"]
[Result "1-0"]
[ECO "A30"]
[WhiteElo "2596"]
[BlackElo "2150"]
[Annotator "TA"]
[PlyCount "87"]
[EventDate "2024.09.05"]
[EventType "team-tourn"]
[EventCountry "HUN"]
[SourceTitle "playchess.com"]
[Source "ChessBase"]
[SourceQuality "1"]
[WhiteTeam "Netherlands"]
[BlackTeam "Lebanon"]
[WhiteTeamCountry "NED"]
[BlackTeamCountry "LBN"]
[TimeControl "40/5400+30:1800+30"]

{[%evp 19,87,40,50,43,75,90,112,116,96,109,138,105,114,116,105,109,178,177,414,408,402,256,397,322,323,311,314,289,303,326,316,309,324,318,309,301,308,300,293,224,228,231,229,231,230,232,235,214,263,244,386,385,418,411,512,487,1361,1353,5081,1500,4906,5712,8984,12545,29948,5816,29955,5891,5600,5420]} 1. c4 {[%emt 0:00:03]} b6 {[%emt 0:00:26]} 2. g3 {[%emt 0:00:25]} Bb7 {[%emt 0:00:09]} 3. Nf3 {[%emt 0:00:05]} e6 {[%emt 0:02:07]} 4. Bg2 {[%emt 0:00:26]} c5 {[%emt 0:00:22]} 5. O-O {[%emt 0:00:31]} Nf6 {[%emt 0:00:17]} 6. Nc3 {[%emt 0:00:24]} Be7 {[%emt 0:00:21]} 7. d4 {[%emt 0:00:35]} cxd4 {[%emt 0:00:25]} 8. Qxd4 {[%emt 0:00:03]} Nc6 {[%emt 0:01:37]} 9. Qf4 {[%emt 0:01:51]} O-O {[%emt 0:08:07]} 10. Rd1 {[%emt 0:00:02]} d6 {[%emt 0:02:59]} 11. b3 {[%emt 0:01:29]} a6 {[%emt 0:03:20][%cal Ob6b5]} 12. Ba3 {[%emt 0:01:41]} d5 {[%emt 0:17:59]} 13. cxd5 $1 {[%emt 0:01:02] White is better.} exd5 {[%emt 0:13:18]} 14. Bb2 {[%emt 0:15:05] White has more active pieces.} Bd6 {[%emt 0:01:40]} 15. Qd2 {[%emt 0:05:59]} Ne7 {[%emt 0:20:08]} 16. Nh4 {[%emt 0:22:15]} Rc8 {[%emt 0:22:03]} 17. Rac1 {[%emt 0:03:00]} Bc5 {[%emt 0:02:37]} (17... Re8 $16) 18. Na4 $18 {[%emt 0:04:14]} Ba8 $2 {[%emt 0:00:42]} (18... Nd7 {was called for.} 19. Qg5 g6) 19. Bxf6 {[%emt 0:02:47]} gxf6 {[%emt 0:00:03]} 20. b4 {[%emt 0:05:44]} Qd7 {[%emt 0:00:11]} (20... Bd6 $142 21. Rxc8 Qxc8 22. Nxb6 Qe6) 21. Nxc5 {[%emt 0:03:51]} bxc5 {[%emt 0:00:03]} 22. bxc5 {[%emt 0:00:06]} (22. Rxc5 Rxc5 23. bxc5 Rd8) 22... Qe6 {[%emt 0:00:59]} 23. Rc3 {[%emt 0:07:55]} Rfe8 {[%emt 0:01:34]} 24. Re3 {[%emt 0:05:53]} Qg4 {[%emt 0:00:16]} 25. Qc3 {[%emt 0:02:55]} Nf5 {[%emt 0:00:46]} 26. Nxf5 {[%emt 0:10:24]} Qxf5 {[%emt 0:00:06]} 27. Rxe8+ {[%emt 0:00:42]} Rxe8 {[%emt 0:00:02]} 28. e3 {[%emt 0:00:09] Black must now prevent c6.} Bc6 {[%emt 0:00:51]} 29. Qd3 {[%emt 0:03:51]} Qxd3 {[%emt 0:00:07]} 30. Rxd3 {[%emt 0:00:01][%mdl 4096] Endgame. KRB-KRB} Rd8 {[%emt 0:00:57]} 31. Rd4 {[%emt 0:01:54]} f5 {[%emt 0:00:56]} 32. Kf1 {[%emt 0:00:36]} Kg7 {[%emt 0:00:28]} 33. Ke2 {[%emt 0:00:20]} Kf6 {[%emt 0:00:24]} 34. Kd2 {[%emt 0:00:39] And now Rb4 would win.} Rb8 {[%emt 0:00:38]} (34... a5 {was worth a try.} 35. Rh4 Kg7) 35. Bxd5 {[%emt 0:00:28]} Bxd5 {[%emt 0:00:09]} 36. Rxd5 {[%emt 0:00:01] KR-KR} Rb2+ {[%emt 0:00:11]} 37. Kc3 {[%emt 0:00:22]} Rxa2 {[%emt 0:00:09]} (37... Rb1 $142 38. Rd6+ Ke5 39. f4+ (39. Rxa6 h5 $18) 39... Ke4 40. Rxa6 Re1) 38. c6 {[%emt 0:00:18] [#] Intending c7 and mate.} Ra1 {[%emt 0:00:29]} 39. Kb2 {[%emt 0:00:54]} Ra4 {[%emt 0:00:17]} 40. Kb3 {[%emt 0:00:29]} Ra1 {[%emt 0:00:10]} 41. Rc5 {[%emt 0:30:30] White threatens c7 and mate.} Rb1+ {[%emt 0:30:07]} 42. Ka4 {[%emt 0:00:18] [#] White wants to mate with c7.} Rb8 {[%emt 0:00:42]} 43. c7 {[%emt 0:00:27]} (43. Ka5 $142 Rc8 44. c7 (44. Kxa6 Re8 $18) 44... h5 45. Kxa6 Rh8 46. Kb7 (46. c8=B Kg7 $18) (46. c8=R Rh7 $18) (46. c8=Q Rxc8 47. Rxc8 Ke6 $18) 46... Rg8 47. c8=Q (47. c8=B h4 $18) (47. c8=R Rg4 $18) 47... Rxc8 48. Kxc8 (48. Rxc8 Ke7 $18)) 43... Rc8 {[%emt 0:00:07]} 44. Ka5 {[%emt 0:00:05] Black did not feel at home in the position after the opening.   Weighted Error Value: White=0.19 (very precise) /Black=0.63.  Mistake:       	---       	Black=5      Inaccurate:     	White=1     	Black=2      OK:         	White=8     	Black=5      Best:        	White=3     	---        Strong:       	White=1     	---} 1-0